bitfinex-derivatives/quotes_SOLF0:USTF0_20250911
["timestamp","ask_amount","ask_price","bid_price","bid_amount"]
[1757561182299,1.63471273,224.56,224.5,7.6]
[1757561182906,1.63471273,224.54,224.46,7.6]
[1757561184000,7.61,224.55,224.47,1.63471273]
[1757561184201,31.53471273,224.6,224.51,1.63471273]
[1757561184407,31.53471273,224.6,224.52,7.6]
[1757561184803,7.61,224.61,224.52,7.6]
[1757561185009,9.24471273,224.61,224.53,1.63471273]
[1757561185210,0.77528015,224.62,224.55,1.63471273]
[1757561186707,1.63471273,224.61,224.54,7.6]
[1757561187014,1.63471273,224.59,224.51,6.99]
[1757561187406,9.24471273,224.6,224.53,6.99]
[1757561188015,1.63471273,224.58,224.53,6.99]
[1757561188205,7.22,224.57,224.53,6.99]
[1757561188610,0.77528015,224.62,224.51,6.99]
[1757561188908,0.77528015,224.62,224.52,1.63471273]
[1757561188909,1.63471273,224.6,224.52,1.63471273]
[1757561189110,1.63471273,224.6,224.51,8.62471273]
[1757561190217,7.22,224.61,224.51,8.62471273]
[1757561190517,8.85471273,224.61,224.51,8.62471273]
[1757561191013,7.22,224.61,224.51,8.62471273]
[1757561191214,8.85471273,224.61,224.51,8.62471273]
[1757561191912,8.85471273,224.61,224.51,6.99]
[1757561192114,7.22,224.61,224.52,1.63471273]
[1757561192312,1.63471273,224.6,224.51,6.99]
[1757561192713,1.63471273,224.58,224.51,6.99]
[1757561192913,7.22,224.61,224.51,6.99]
[1757561193215,1.63471273,224.59,224.51,6.99]
[1757561196021,8.85471273,224.59,224.51,6.99]
[1757561198423,7.22,224.59,224.51,6.99]
[1757561203122,5.00042619,224.62,224.56,6.99]
[1757561203322,5.00042619,224.66,224.56,6.99]
[1757561203526,5.00042619,224.64,224.56,6.99]
[1757561203727,7.22,224.63,224.56,6.99]
[1757561204228,12.22042619,224.63,224.56,6.99]
[1757561204628,7.22,224.63,224.56,6.99]
[1757561207231,0.77506431,224.65,224.56,6.99]
[1757561207727,5.00042619,224.66,224.56,9.54301539]
[1757561207929,5.00042619,224.66,224.57,6.99]
[1757561208433,12.22042619,224.67,224.57,6.99]
[1757561209934,7.22,224.67,224.57,6.99]
[1757561212634,9.77301539,224.67,224.57,6.99]
[1757561213730,9.77301539,224.67,224.52,2.55301539]
[1757561214030,2.55301539,224.64,224.53,6.99]
[1757561214232,7.22,224.63,224.53,6.99]
[1757561216536,9.77301539,224.63,224.53,6.99]
[1757561217436,5.00042619,224.66,224.53,6.99]
[1757561217637,7.45,224.67,224.54,2.55301539]
[1757561217832,7.45,224.67,224.55,7.1]
[1757561224338,10.00301539,224.67,224.55,7.1]
[1757561224937,7.45,224.67,224.55,7.1]
[1757561226343,7.45,224.67,224.56,7.1]
[1757561240850,7.45,224.67,224.58,7.1]
[1757561247454,7.45,224.67,224.54,7.22]
[1757561247752,6.95,224.64,224.54,7.22]
[1757561253259,6.95,224.64,224.47,6.2481345]
[1757561253465,6.95,224.61,224.49,7.22]
[1757561258372,1.6338352,224.59,224.5,1.6338352]
[1757561258670,8.5838352,224.59,224.51,7.22]
[1757561265973,1.6338352,224.57,224.51,7.22]
[1757561266179,6.95,224.54,224.46,1.6338352]
[1757561266478,1.6338352,224.53,224.46,1.6338352]
[1757561267278,6.95,224.52,224.45,7.22]
[1757561268279,1.66273251,224.51,224.46,0.02829547]
[1757561268478,6.95,224.5,224.46,0.02829547]
[1757561268976,0.02889731,224.51,224.46,0.02829547]
[1757561269275,6.95,224.49,224.46,0.02829547]
[1757561271475,1.6338352,224.5,224.46,0.02829547]
[1757561271675,6.95,224.49,224.46,0.02829547]
[1757561271880,1.6338352,224.48,224.46,0.02829547]
[1757561272081,6.95,224.47,224.46,0.02829547]
[1757561272479,6.95,224.47,224.39,1.6338352]
[1757561272681,6.95,224.45,224.39,1.6338352]
[1757561273179,6.95,224.45,224.38,7.22]
[1757561273781,0.03273756,224.44,224.38,7.22]
[1757561274590,1.66657276,224.44,224.38,7.22]
[1757561275890,6.95,224.43,224.38,7.22]
[1757561276079,8.61657276,224.44,224.38,7.22]
[1757561276283,6.98273756,224.44,224.38,7.22]
[1757561278698,0.03273756,224.44,224.43,8.7038352]
[1757561278994,8.6638352,224.53,224.43,8.7038352]
[1757561278995,7.03,224.53,224.43,8.7038352]
[1757561279190,20.3952481,224.53,224.47,1.6338352]
[1757561279390,7.03,224.53,224.47,1.6338352]
[1757561280893,7.03,224.53,224.46,7.07]
[1757561288599,7.03,224.53,224.47,0.03180858]
[1757561288804,7.06427398,224.52,224.48,7.07]
[1757561291102,0.03427398,224.52,224.48,7.07]
[1757561291303,0.03427398,224.52,224.5,7.07]
[1757561291501,0.03427398,224.52,224.49,1.6338352]
[1757561291904,0.03427398,224.52,224.5,7.07]
[1757561292104,0.03427398,224.52,224.49,1.6338352]
[1757561292404,0.03427398,224.52,224.5,7.07]
[1757561292600,0.03427398,224.52,224.49,1.6338352]
[1757561293204,0.03427398,224.52,224.5,7.07]
[1757561293400,0.03427398,224.52,224.49,1.6338352]
[1757561293803,0.03427398,224.52,224.5,7.07]
[1757561294001,0.03427398,224.52,224.49,1.6338352]
[1757561295308,0.03427398,224.52,224.51,8.7038352]
[1757561297708,0.03427398,224.52,224.51,7.07]
[1757561312516,0.03427398,224.52,224.51,8.7038352]
[1757561316814,0.03427398,224.52,224.51,7.07]
[1757561317012,0.03427398,224.52,224.51,8.7038352]
[1757561318117,0.03427398,224.52,224.51,7.07]
[1757561326218,7.03427398,224.52,224.48,7.07]
[1757561326517,7.03427398,224.52,224.47,0.03180858]
[1757561327221,7.03427398,224.52,224.48,7.07]
[1757561327817,7.03427398,224.52,224.47,0.03180858]
[1757561328015,0.03427398,224.52,224.47,0.03180858]
[1757561328221,7.0,224.51,224.47,0.03180858]
[1757561329221,0.03427398,224.52,224.47,0.03180858]
[1757561329529,7.0,224.51,224.47,0.03180858]
[1757561331928,0.03427398,224.52,224.47,0.03180858]
[1757561332328,7.0,224.51,224.47,0.03180858]
[1757561332524,0.03427398,224.52,224.47,0.03180858]
[1757561332728,7.0,224.51,224.47,0.03180858]
[1757561336325,7.44,224.51,224.41,7.07]
[1757561336527,7.44,224.51,224.36,7.07]
[1757561336528,7.0,224.48,224.36,7.07]
[1757561337629,0.02971486,224.44,224.36,7.07]
[1757561339227,0.02971486,224.44,224.37,2.55291712]
[1757561339434,0.02971486,224.44,224.3,2.05077907]
[1757561339435,0.02971486,224.44,224.41,7.41]
[1757561339829,10.48,224.53,224.41,7.41]
[1757561340032,0.03329228,224.45,224.41,7.41]
[1757561342436,6.92,224.54,224.44,7.41]
[1757561361551,6.92,224.52,224.38,7.41]
[1757561364657,6.92,224.52,224.41,7.41]
[1757561372859,0.0289496,224.49,224.44,0.03076624]
[1757561373055,7.48,224.48,224.44,0.03076624]
[1757561373259,0.0289496,224.49,224.44,0.03076624]
[1757561373462,7.48,224.48,224.44,0.03076624]
[1757561373663,0.0289496,224.49,224.44,0.03076624]
[1757561373859,7.48,224.48,224.44,0.03076624]
[1757561374459,0.0289496,224.49,224.44,0.03076624]
[1757561374655,7.48,224.48,224.44,0.03076624]
[1757561374957,7.48,224.48,224.44,7.50076624]
[1757561375158,7.48,224.48,224.45,7.47]
[1757561376663,0.0289496,224.49,224.44,0.03076624]
[1757561376963,7.48,224.48,224.44,0.03076624]
[1757561377364,0.0289496,224.49,224.44,0.03076624]
[1757561377563,7.48,224.48,224.44,7.50076624]
[1757561378064,7.48,224.48,224.45,7.47]
[1757561379063,7.48,224.48,224.44,0.03076624]
[1757561380465,7.48,224.45,224.44,0.03076624]
[1757561393170,0.0289496,224.49,224.44,0.03076624]
[1757561393373,0.0289496,224.49,224.46,7.47]
[1757561393569,0.0289496,224.49,224.45,9.10563924]
[1757561393865,0.0289496,224.49,224.46,7.47]
[1757561394066,7.5089496,224.49,224.46,7.47]
[1757561394771,7.5089496,224.49,224.44,1.66640548]
[1757561394772,0.0289496,224.49,224.44,1.66640548]
[1757561395472,0.0289496,224.49,224.45,7.47]
[1757561395870,0.0289496,224.49,224.44,1.66640548]
[1757561396469,0.0289496,224.49,224.45,7.47]
[1757561396667,0.0289496,224.49,224.44,1.66640548]
[1757561396865,0.0289496,224.49,224.45,7.47]
[1757561397073,0.0289496,224.49,224.44,1.66640548]
[1757561397275,0.0289496,224.49,224.45,7.41]
[1757561397974,0.0289496,224.49,224.44,1.66640548]
[1757561398469,0.0289496,224.49,224.45,7.41]
[1757561398669,0.0289496,224.49,224.44,1.66640548]
[1757561398865,0.0289496,224.49,224.45,7.41]
[1757561399366,0.0289496,224.49,224.44,1.66640548]
[1757561400274,0.0289496,224.49,224.45,7.41]
[1757561400976,0.0289496,224.49,224.44,1.66640548]
[1757561401175,0.0289496,224.49,224.45,7.41]
[1757561401675,0.0289496,224.49,224.44,1.66640548]
[1757561402072,0.0289496,224.49,224.45,7.41]
[1757561402476,0.0289496,224.49,224.44,1.66640548]
[1757561402773,0.0289496,224.49,224.45,7.41]
[1757561403165,1.63563924,224.48,224.44,0.03076624]
[1757561403374,7.59,224.45,224.44,0.03076624]
[1757561407781,7.59,224.45,224.37,7.41]
[1757561407982,9.22563924,224.42,224.36,7.41]
[1757561408173,7.59,224.47,224.37,1.63563924]
[1757561408375,23.66,224.49,224.42,7.41]
[1757561408580,23.66,224.49,224.42,9.04563924]
[1757561408976,7.61885962,224.48,224.42,9.04563924]
[1757561409180,7.61885962,224.48,224.42,7.41]
[1757561409786,0.02885962,224.48,224.42,9.04563924]
[1757561413288,0.02885962,224.48,224.42,7.41]
[1757561413484,7.59,224.47,224.39,1.63563924]
[1757561413690,7.59,224.45,224.38,7.41]
[1757561414090,7.61948236,224.45,224.38,7.41]
[1757561416698,9.2551216,224.45,224.35,1.63563924]
[1757561416894,7.59,224.42,224.35,1.63563924]
[1757561418498,7.59,224.42,224.36,7.41]
[1757561423299,9.22563924,224.41,224.33,9.04563924]
[1757561423693,9.22563924,224.41,224.33,7.41]
[1757561423998,0.03288468,224.39,224.33,9.04563924]
[1757561425197,0.03288468,224.39,224.33,7.41]
[1757561425400,9.25852392,224.39,224.33,7.41]
[1757561426400,7.59,224.36,224.33,7.41]
[1757561428799,7.12,224.36,224.3,2.05077907]
[1757561431798,0.03288468,224.39,224.33,8.93563924]
[1757561432000,0.03288468,224.39,224.34,1.63563924]
[1757561432804,0.03288468,224.39,224.36,7.3]
[1757561433895,0.03288468,224.39,224.35,1.63563924]
[1757561434204,0.03288468,224.39,224.38,7.3]
[1757561435594,7.12,224.48,224.38,7.3]
[1757561435902,7.12,224.48,224.41,7.3]
[1757561436204,1.63563924,224.51,224.42,1.63563924]
[1757561436401,1.63563924,224.51,224.43,7.3]
[1757561436596,7.12,224.52,224.43,7.3]
[1757561436794,1.63563924,224.51,224.43,8.93563924]
[1757561437109,8.75563924,224.52,224.43,8.93563924]
[1757561440311,7.12,224.52,224.43,7.3]
[1757561441803,7.12,224.56,224.45,7.3]
[1757561442408,7.12,224.56,224.47,2.55419534]
[1757561442606,7.12,224.56,224.48,7.3]
[1757561443002,30.86,224.6,224.48,7.3]
[1757561445812,2.55419534,224.59,224.48,7.3]
[1757561446012,7.12,224.55,224.44,7.3]
[1757561448413,7.14811387,224.52,224.44,7.3]
[1757561450206,7.14811387,224.52,224.37,2.55419534]
[1757561450517,7.14811387,224.52,224.46,0.03306536]
[1757561450518,2.55419534,224.5,224.46,0.03306536]
[1757561450714,0.03042087,224.47,224.46,0.03306536]
[1757561450918,7.15042087,224.47,224.38,7.3]
[1757561451314,9.70461621,224.47,224.38,7.3]
[1757561451516,7.15042087,224.47,224.38,7.3]
[1757561455215,9.70461621,224.47,224.38,7.3]
[1757561460719,0.03042087,224.47,224.38,7.3]
[1757561462224,0.03042087,224.47,224.4,2.55419534]
[1757561462423,0.03042087,224.47,224.41,7.04]
[1757561462624,7.21,224.54,224.41,7.04]
[1757561462819,0.0310904,224.46,224.41,7.04]
[1757561465919,0.0310904,224.46,224.4,2.55419534]
[1757561466126,0.0310904,224.46,224.34,7.04]
[1757561466325,0.0310904,224.46,224.39,7.04]
[1757561469029,0.0310904,224.46,224.45,7.04]
[1757561469236,7.21,224.56,224.45,7.04]
[1757561471844,7.21,224.56,224.47,7.04]
[1757561472349,0.02870859,224.54,224.47,7.04]
[1757561480144,0.02870859,224.54,224.47,9.59419534]
[1757561480447,0.02870859,224.54,224.48,7.04]
[1757561499656,0.02870859,224.54,224.48,2.55419534]
[1757561500156,0.02870859,224.54,224.49,7.26]
[1757561500453,0.02870859,224.54,224.48,2.55419534]
[1757561500858,0.02870859,224.54,224.49,7.26]
[1757561501560,0.02870859,224.54,224.48,2.55419534]
[1757561502350,7.49870859,224.54,224.49,8.89374763]
[1757561502556,7.49870859,224.54,224.5,7.26]
[1757561502755,7.47,224.53,224.5,7.26]
[1757561503059,0.02870859,224.54,224.5,7.26]
[1757561503259,7.47,224.53,224.5,7.26]
[1757561504057,0.02870859,224.54,224.49,1.63374763]
[1757561504253,0.02870859,224.54,224.48,1.63374763]
[1757561504457,0.02870859,224.54,224.49,7.26]
[1757561504657,0.02870859,224.54,224.48,1.63374763]
[1757561505658,0.02870859,224.54,224.43,7.26]
[1757561505860,0.02870859,224.54,224.48,7.26]
[1757561506055,0.02870859,224.54,224.48,8.89374763]
[1757561506255,7.47,224.55,224.48,8.89374763]
[1757561506558,7.47,224.52,224.44,1.63374763]
[1757561506754,7.47,224.52,224.45,7.26]
[1757561507261,9.10374763,224.52,224.45,7.26]
[1757561512364,1.63374763,224.51,224.45,7.26]
[1757561513767,1.63374763,224.51,224.46,0.03314587]
[1757561513962,7.47,224.5,224.46,0.03314587]
[1757561514263,1.63374763,224.51,224.46,0.03314587]
[1757561514466,7.47,224.5,224.46,0.03314587]
[1757561514667,1.63374763,224.51,224.46,0.03314587]
[1757561515665,1.63374763,224.49,224.46,0.03314587]
[1757561516058,7.47,224.48,224.46,0.03314587]
[1757561516473,1.66562154,224.49,224.46,0.03314587]
[1757561517058,6.91,224.48,224.46,0.03314587]
[1757561517368,1.66562154,224.49,224.46,0.03314587]
[1757561517975,6.91,224.48,224.46,0.03314587]
[1757561518868,1.66562154,224.49,224.46,0.03314587]
[1757561519465,0.03187391,224.49,224.47,7.29]
[1757561519770,0.03187391,224.49,224.46,0.03314587]
[1757561520170,0.03187391,224.49,224.47,7.29]
[1757561521369,0.03187391,224.49,224.46,0.03314587]
[1757561521574,0.03187391,224.49,224.47,7.29]
[1757561522265,0.03187391,224.49,224.46,0.03314587]
[1757561522472,0.03187391,224.49,224.47,7.29]
[1757561524276,0.03187391,224.49,224.46,0.03314587]
[1757561524477,0.03187391,224.49,224.47,7.29]
[1757561524673,0.03187391,224.49,224.47,8.92374763]
[1757561525074,6.63417382,224.59,224.47,7.29]
[1757561525274,6.63417382,224.59,224.51,7.29]
[1757561525479,1.63374763,224.59,224.51,7.29]
[1757561526271,1.63374763,224.57,224.53,0.03099996]
[1757561526471,6.91,224.56,224.53,0.03099996]
[1757561526675,1.63374763,224.57,224.53,0.03099996]
[1757561526878,6.91,224.54,224.53,0.03099996]
[1757561527173,6.91,224.54,53.532,169.60232219]
[1757561527174,6.91,224.54,224.43,7.29]
[1757561527376,1.63374763,224.5,224.43,7.29]
[1757561527677,1.63374763,224.5,224.43,8.92374763]
[1757561528374,8.54374763,224.51,224.43,8.92374763]
[1757561529878,8.54374763,224.51,224.43,7.29]
[1757561530081,1.63374763,224.49,224.43,7.29]
[1757561531671,6.91,224.48,224.43,7.29]
[1757561531876,8.54374763,224.49,224.43,7.29]
[1757561533982,8.54374763,224.49,224.4,1.63374763]
[1757561533983,8.54374763,224.49,224.34,320.86]
[1757561534182,1.63374763,224.47,224.39,7.29]
[1757561535280,5.00042619,224.52,224.39,7.29]
[1757561535281,1.63374763,224.45,224.39,7.29]
[1757561535487,6.91,224.46,224.39,7.29]
[1757561535686,1.63374763,224.45,224.39,7.29]
[1757561535889,6.91,224.46,224.39,7.29]
[1757561536091,1.63374763,224.45,224.39,7.29]
[1757561536998,1.63374763,224.43,224.35,1.63374763]
[1757561537182,1.63374763,224.43,224.35,7.29]
[1757561538494,6.91,224.44,224.35,7.29]
[1757561538693,1.63374763,224.43,224.35,7.29]
[1757561539186,1.63374763,224.39,224.35,7.29]
[1757561539387,1.63374763,224.37,224.3,9.34077907]
[1757561539593,1.63374763,224.35,224.3,9.34077907]
[1757561539888,1.63374763,224.35,224.31,7.29]
[1757561540293,1.63374763,224.37,224.31,7.29]
[1757561540993,0.03287529,224.36,224.32,0.02826941]
[1757561541196,6.94287529,224.36,224.32,0.02826941]
[1757561542587,8.54374763,224.35,224.32,0.02826941]
[1757561542788,1.63374763,224.35,224.32,7.31826941]
[1757561543096,8.57662292,224.36,224.32,7.31826941]
[1757561543292,6.91,224.35,224.32,7.31826941]
[1757561543492,6.91,224.35,224.32,0.02826941]
[1757561545090,0.03287529,224.36,224.33,7.29]
[1757561545289,0.03287529,224.36,224.32,0.02826941]
[1757561545495,0.03287529,224.36,224.35,1.63374763]
[1757561545793,0.03287529,224.36,224.35,8.92374763]
[1757561546192,0.03287529,224.36,224.35,7.29]
[1757561546397,0.03287529,224.36,224.33,7.29]
[1757561547500,0.03287529,224.36,224.32,0.02826941]
[1757561547694,0.03287529,224.36,224.33,7.05]
[1757561547895,0.03287529,224.36,224.32,1.66201704]
[1757561548397,0.03287529,224.36,224.33,7.05]
[1757561548594,0.03287529,224.36,224.32,1.66201704]
[1757561548998,0.03287529,224.36,224.33,7.05]
[1757561550493,0.03287529,224.36,224.32,1.66201704]
[1757561551502,0.03287529,224.36,224.35,7.05]
[1757561554402,0.03287529,224.36,224.33,7.05]
[1757561556109,7.22287529,224.36,224.33,7.05]
[1757561556610,8.82374763,224.35,224.32,0.02826941]
[1757561556807,7.19,224.34,224.32,0.02826941]
[1757561557309,1.63374763,224.35,224.32,0.02826941]
[1757561557907,7.19,224.34,224.32,0.02826941]
[1757561563214,7.19,224.34,224.32,0.02826941]
[1757561563512,1.66662292,224.36,224.32,0.02826941]
[1757561563816,7.19,224.34,224.32,0.02826941]
[1757561565310,0.03287529,224.36,224.32,0.02826941]
[1757561565813,7.19,224.35,224.32,0.02826941]
[1757561566011,0.03287529,224.36,224.32,0.02826941]
[1757561566208,7.19,224.35,224.32,0.02826941]
[1757561566810,0.03287529,224.36,224.32,0.02826941]
[1757561567205,7.19,224.35,224.32,0.02826941]
[1757561567416,7.19,224.35,224.25,7.05]
[1757561568618,0.03110598,224.32,224.28,0.03036412]
[1757561568815,7.22110598,224.32,224.29,7.05]
[1757561575420,7.19,224.31,224.29,7.05]
[1757561575622,7.19,224.31,224.28,0.03036412]
[1757561576222,0.03110598,224.32,224.28,0.03036412]
[1757561576418,7.19,224.31,224.28,0.03036412]
[1757561576723,0.03110598,224.32,224.28,0.03036412]
[1757561576919,7.19,224.31,224.28,0.03036412]
[1757561577625,6.9,224.31,224.28,0.03036412]
[1757561577925,0.03110598,224.32,224.28,0.03036412]
[1757561578323,6.93110598,224.32,224.29,7.2]
[1757561578622,6.9,224.31,224.28,0.03036412]
[1757561579718,0.03110598,224.32,224.28,0.03036412]
[1757561580119,6.9,224.31,224.28,0.03036412]
[1757561580517,6.9,224.28,224.15,7.2]
[1757561581622,0.0298606,224.24,224.15,7.2]
[1757561582223,0.0298606,224.24,224.19,7.2]
[1757561582416,0.0298606,224.24,224.21,2.55799114]
[1757561582621,0.0298606,224.24,224.22,7.2]
[1757561584421,6.9,224.32,224.22,7.2]
[1757561585630,0.03364675,224.29,224.22,7.2]
[1757561586526,6.93364675,224.29,224.22,7.2]
[1757561589128,0.03364675,224.29,224.22,7.2]
[1757561592130,0.03364675,224.29,224.25,7.2]
[1757561594638,0.03364675,224.29,224.24,2.55799114]
[1757561595238,0.03364675,224.29,224.25,7.2]
[1757561595932,0.03364675,224.29,224.24,2.55799114]
[1757561596537,0.03364675,224.29,224.25,7.2]
[1757561596939,0.03364675,224.29,224.24,2.55799114]
[1757561597536,0.03364675,224.29,224.25,7.2]
[1757561597736,0.03364675,224.29,224.24,2.55799114]
[1757561598235,0.03364675,224.29,224.23,7.2]
[1757561599040,0.03364675,224.29,224.23,9.75799114]
[1757561599343,0.03364675,224.29,224.23,2.55799114]
[1757561599539,0.03364675,224.29,224.24,7.2]
[1757561599736,0.03364675,224.29,224.23,2.55799114]
[1757561600138,0.03364675,224.29,224.23,7.2]
[1757561613341,7.45,224.38,224.28,2.55799114]
[1757561613541,7.45,224.38,224.29,6.94]
[1757561615449,10.00799114,224.38,224.26,6.94]
[1757561615640,0.03041684,224.36,224.31,0.03406776]
[1757561616045,7.45,224.35,224.31,0.03406776]
[1757561617444,0.03041684,224.36,224.31,0.03406776]
[1757561617747,7.45,224.35,224.31,0.03406776]
[1757561618348,0.03041684,224.36,224.31,0.03406776]
[1757561618744,7.45,224.35,224.31,0.03406776]
[1757561618950,0.03041684,224.36,224.31,0.03406776]
[1757561619146,7.45,224.35,224.31,0.03406776]
[1757561619545,0.03041684,224.36,224.31,0.03406776]
[1757561619746,7.45,224.35,224.31,0.03406776]
[1757561620051,0.03041684,224.36,224.31,0.03406776]
[1757561620254,7.45,224.35,224.31,0.03406776]
[1757561620548,7.45,224.35,224.31,6.97406776]
[1757561620744,0.03041684,224.36,224.31,6.97406776]
[1757561621451,7.45,224.35,224.31,6.97406776]
[1757561621846,0.03041684,224.36,224.31,0.03406776]
[1757561622852,7.45,224.35,224.31,0.03406776]
[1757561623054,7.45,224.35,224.32,6.94]
[1757561624044,0.03041684,224.36,224.32,6.94]
[1757561624250,7.45,224.35,224.32,6.94]
[1757561624953,9.08692241,224.35,224.31,0.03406776]
[1757561625157,7.45,224.34,224.31,0.03406776]
[1757561625451,7.45,224.32,224.31,0.03406776]
[1757561627859,7.45,224.32,224.25,6.94]
[1757561628066,7.45,224.29,224.21,1.63692241]
[1757561628268,7.45,224.25,224.19,3.70688921]
[1757561628463,1.63692241,224.24,224.17,10.64688921]
[1757561628759,1.63692241,224.24,224.17,6.94]
[1757561629154,0.03408756,224.23,224.17,6.94]
[1757561629358,7.48408756,224.23,224.17,6.94]
[1757561631059,7.48408756,224.23,224.15,1.63692241]
[1757561632358,7.48408756,224.23,224.16,6.94]
[1757561633369,7.45,224.18,224.12,6.94]
[1757561633871,0.03303364,224.17,224.11,6.94]
[1757561637871,0.03303364,224.17,224.11,8.57692241]
[1757561641768,0.03303364,224.17,224.11,6.94]
[1757561642369,7.1,224.15,224.1,2.05260927]
[1757561642575,8.73692241,224.16,224.1,2.05260927]
[1757561643080,7.1,224.11,224.1,2.05260927]
[1757561644680,7.1,224.11,224.1,1.85866894]
[1757561645280,7.54,224.11,224.1,1.85866894]
[1757561646586,9.17692241,224.11,224.1,1.85866894]
[1757561647178,7.54,224.11,224.1,1.85866894]
[1757561647481,1.63692241,224.13,224.1,1.85866894]
[1757561647682,8.73692241,224.11,224.1,1.85866894]
[1757561647882,8.73692241,224.13,224.1,1.85866894]
[1757561649788,8.73692241,224.13,224.1,9.37866894]
[1757561649980,8.73692241,224.13,224.1,1.85866894]
[1757561650175,1.63692241,224.11,224.1,1.85866894]
[1757561650481,8.73692241,224.11,224.1,1.85866894]
[1757561651282,9.17692241,224.11,223.98,1.63692241]
[1757561651482,1.63692241,224.05,223.97,7.52]
[1757561651685,7.1,224.06,223.97,7.52]
[1757561651885,0.03028965,224.03,223.97,7.52]
[1757561652482,0.03028965,224.03,223.98,1.63692241]
[1757561652682,0.03028965,224.03,223.99,7.52]
[1757561652984,0.03028965,224.03,224.01,7.52]
[1757561653383,0.03028965,224.03,223.91,7.52]
[1757561653586,0.03028965,224.03,224.0,1.63692241]
[1757561653786,0.03028965,224.03,224.01,7.52]
[1757561654378,0.03028965,224.03,224.0,1.63692241]
[1757561654587,0.03028965,224.03,223.98,1.63692241]
[1757561654983,0.03028965,224.03,223.99,7.52]
[1757561655184,0.03028965,224.03,223.98,1.63692241]
[1757561655386,0.03028965,224.03,223.99,7.52]
[1757561655588,0.03028965,224.03,223.98,1.63692241]
[1757561655892,0.03028965,224.03,224.01,7.52]
[1757561656287,0.03028965,224.03,224.0,1.63692241]
[1757561657386,0.03028965,224.03,224.01,7.52]
[1757561657588,0.03028965,224.03,224.0,1.63692241]
[1757561659190,0.03028965,224.03,223.99,7.52]
[1757561659390,7.13028965,224.03,223.99,7.52]
[1757561659695,0.03028965,224.03,223.98,1.63692241]
[1757561660100,0.03028965,224.03,223.99,7.52]
[1757561660289,0.03028965,224.03,223.98,1.63692241]
[1757561660598,0.03028965,224.03,223.99,7.52]
[1757561660890,7.13028965,224.03,223.98,1.63692241]
[1757561661096,0.03028965,224.03,223.98,1.63692241]
[1757561661890,0.03028965,224.03,223.99,7.52]
[1757561662090,0.03028965,224.03,223.98,1.63692241]
[1757561662488,0.03028965,224.03,223.99,7.52]
[1757561663594,0.03028965,224.03,223.98,1.63692241]
[1757561663789,0.03028965,224.03,223.99,7.52]
[1757561663986,0.03028965,224.03,223.8,3.70688921]
[1757561664193,0.03028965,224.03,223.98,1.63692241]
[1757561664395,0.03028965,224.03,223.99,7.52]
[1757561664793,0.03028965,224.03,223.98,1.63692241]
[1757561665200,0.03028965,224.03,223.99,7.52]
[1757561665400,0.03028965,224.03,223.98,1.63692241]
[1757561665599,0.03028965,224.03,223.99,7.52]
[1757561666197,1.63692241,224.01,223.91,7.52]
[1757561666397,1.63692241,223.99,223.91,7.52]
[1757561666899,0.03364484,223.98,223.91,7.52]
[1757561669700,0.03364484,223.98,223.93,7.07]
[1757561670000,0.03364484,223.98,223.94,1.63692241]
[1757561670596,0.03364484,223.98,223.95,7.07]
[1757561670999,0.03364484,223.98,223.94,1.63692241]
[1757561671198,0.03364484,223.98,223.95,7.07]
[1757561671600,0.03364484,223.98,223.94,1.63692241]
[1757561671796,0.03364484,223.98,223.95,7.07]
[1757561672000,0.03364484,223.98,223.94,1.63692241]
[1757561672501,0.03364484,223.98,223.95,7.07]
[1757561672903,0.03364484,223.98,223.94,1.63692241]
[1757561673102,0.03364484,223.98,223.95,7.07]
[1757561673304,0.03364484,223.98,223.91,7.07]
[1757561673503,0.03364484,223.98,223.93,1.63692241]
[1757561673706,0.03364484,223.98,223.94,7.07]
[1757561673905,0.03364484,223.98,223.93,1.63692241]
[1757561674105,0.03364484,223.98,223.94,7.07]